Cogmind - Beta 14 @@@ ROGUE MODE // 2024.09.15 @ 00:07:31 Player: porkhorse Result: Destroyed by G-47 Trooper with Particle Gun Performance ------------- Evolutions (0) 0 Regions Visited (1) 200 Robots Destroyed (16) 80 Value Destroyed (365) 365 Prototype IDs (0) 0 Alien Tech Used (0) 0 Bonus (0) 0 TOTAL SCORE: 645 Bonus ------- None Cogmind --------- Core Integrity 0/250 Matter 131/300 Energy 160/160 System Corruption 0% Temperature Cool (80) Movement Walking (120) Location -10/Materials Parts ------- > --- POWER (1) -------- Light Nuclear Core > --- PROPULSION (2) --- Aluminum Leg Aluminum Leg > --- UTILITY (2) ------ Small Storage Unit > --- WEAPON (2) ------- Light Assault Rifle > --- INVENTORY (8) ---- Ion Engine Aluminum Leg Aluminum Leg Large Matter Pod (0) Tractor Beam Mini Grenade Launcher Mini Grenade Launcher Peak State ------------ > --- POWER ------------ Light Nuclear Core > --- PROPULSION ------- Aluminum Leg Aluminum Leg > --- UTILITY ---------- Small Storage Unit Seismic Detector > --- WEAPON ----------- Mini Grenade Launcher Mini Grenade Launcher > --- INVENTORY -------- Ion Engine Aluminum Leg Aluminum Leg Large Matter Pod Tractor Beam Light Assault Rifle Light Assault Rifle Light Assault Rifle [Rating: 11] Favorites ----------- Power Ion Engine Engine Ion Engine Power Core Light Nuclear Core Propulsion Aluminum Leg Treads Light Treads Leg Aluminum Leg Utility Small Storage Unit Device Seismic Detector Storage Small Storage Unit Weapon Light Assault Rifle Energy Gun Small Laser Ballistic Gun Light Assault Rifle Launcher Mini Grenade Launcher Build | -11 -10 ------- Run | Yrd Mat Slots Evolved . | . . Power . | . . Propulsion . | . . Utility . | . . Weapon . | . . Parts Attached 26 | 7 19 Power 3 | 1 2 Engine 2 | 1 1 Core 1 | . 1 Reactor . | . . Propulsion 12 | 2 10 Treads 4 | . 4 Leg 8 | 2 6 Wheel . | . . Hover . | . . Flight . | . . Utility 2 | 2 . Device 1 | 1 . Storage 1 | 1 . Processor . | . . Hackware . | . . Protection . | . . Artifact . | . . Weapon 9 | 2 7 Energy Gun 2 | 1 1 Energy Cannon . | . . Ballistic Gun 5 | 1 4 Ballistic Cannon . | . . Launcher 2 | . 2 Special Weapon . | . . Impact Weapon . | . . Slashing Weapon . | . . Piercing Weapon . | . . Special Melee Weapon . | . . Unidentified Prototypes . | . . Parts Lost 4 | . 4 Power 1 | . 1 Propulsion 1 | . 1 Utility 1 | . 1 Weapon 1 | . 1 Highest Loss Streak 2 | . 2 To Critical Strikes . | . . Average Slot Usage (%) 98 | . 98 Engine 10 | . 10 Core 3 | . 3 Treads 5 | . 5 Leg 22 | . 22 Device 13 | . 13 Storage 14 | . 14 Energy Gun 5 | . 5 Ballistic Gun 21 | . 21 Peak Build Rating 11 | 7 11 Average Rating 7 | 5 7 On Entrance 3 | . 7 Naked Turns . | . . Heaviest Build 13 | 13 13 Greatest Support 40 | 20 40 Greatest Overweight (x) 1 | . 1 Average Overweight (x) . | . . Largest Inventory Capacity 8 | 8 8 Average Capacity 7 | 7 8 Most Carried 8 | 5 8 Average Carried 5 | 3 6 Final Capacity 8 | 8 8 Final Carried 7 | 5 7 Class Distribution -------------------- 75% | Mutant 24% | Scavenger-Mutant Dominant Class ---------------- Mutant | -10/Materials Resources | -11 -10 ----------- Run | Yrd Mat Matter Collected 403 | 275 128 Remotely . | . . Salvage Created 513 | 119 394 Parts 38 | 5 33 Haulers Intercepted . | . . Recyclers Shooed 3 | . 3 Parts Field Recycled . | . . Retrieved Matter . | . . Parts Self-Destructed . | . . Prevented . | . . Kills | -11 -10 ------- Run | Yrd Mat Combat Hostiles Destroyed 11 | . 11 Guns 10 | . 10 AOE 1 | . 1 Classes Destroyed 7 | 2 5 Builder 1 | . 1 Tunneler 1 | 1 . Recycler 1 | 1 . Operator 1 | . 1 Watcher 1 | . 1 Swarmer 3 | . 3 Grunt 8 | . 8 Best Kill Streak 5 | 2 5 Combat Bots Only 5 | . 5 Max Kills in Single Turn 2 | 1 2 Gunslinging . | . . Exploded 1 | . 1 Melee . | . . Uniques/NPCs Destroyed . | . . Combat | -11 -10 -------- Run | Yrd Mat Hostile Shots Fired 103 | . 103 Missed 24 | . 24 Damage Taken 878 | . 878 Core 253 | . 253 Absorbed by Shields . | . . Core Remaining (%) 100 | 100 . Volleys Fired 61 | 5 56 Largest 2 | 2 2 Hottest 60 | 60 60 Shots Fired 119 | 10 109 Gun 115 | 10 105 Cannon . | . . Launcher 4 | . 4 Special . | . . Kinetic 95 | 5 90 Thermal 20 | 5 15 Explosive 4 | . 4 Electromagnetic . | . . Robot Hit Streak 8 | 3 8 Robot Miss Streak 5 | 2 5 Penetration Max . | . . Secondary Targets 3 | . 3 Max Gunslinging Chain 1 | . 1 Shots Hit Robots 67 | 5 62 Core Hits 34 | 3 31 Critical Kills . | . . Critical Parts Destroyed . | . . Critical Strikes . | . . Melee Attacks . | . . Impact . | . . Slashing . | . . Piercing . | . . Sneak Attacks . | . . Combat Hostiles . | . . Follow-up Attacks . | . . Damage Inflicted 890 | 42 848 Guns 612 | 42 570 Cannons . | . . Explosions 276 | . 276 Melee . | . . Ramming 2 | . 2 Kinetic 495 | 22 473 Thermal 117 | 20 97 Explosive 276 | . 276 Electromagnetic . | . . Impact . | . . Slashing . | . . Piercing . | . . Highest Corruption . | . . Average Corruption . | . . Corruption Purged . | . . Corruption Blocked . | . . Overload Shots . | . . Overflow Damage 6 | . 6 Projectiles . | . . Explosions 6 | . 6 Melee . | . . Knockbacks . | . . Impact . | . . Kinetic . | . . Secondary . | . . Self-Inflicted Damage . | . . Shots . | . . Rammed . | . . Targets Rammed 1 | . 1 Kicked 1 | . 1 Crushed . | . . Highest Temperature 102 | 20 102 Average Temperature 28 | 15 29 Received Heat Transfer 417 | . 417 Siege Activations . | . . Robots Corrupted . | . . Combat Hostiles . | . . Parts Fried . | . . Impact Corruptions . | . . Robots Melted . | . . Combat Hostiles . | . . Parts Melted . | . . Heat Transferred 275 | 50 225 Parts Sabotaged . | . . Parts Stolen . | . . Parts Stripped . | . . Power Chain Reactions . | . . Alert | -11 -10 ------- Run | Yrd Mat Peak Influence 290 | 10 290 Initial 6 | . 6 Average 95 | 3 116 Maximum Alert Level 1 | . 1 Low Security (%) 82 | 100 78 Level 1 17 | . 21 Level 2 . | . . Level 3 . | . . Level 4 . | . . Level 5 . | . . High Security . | . . Max Security . | . . Squads Dispatched 2 | . 2 Investigation 1 | . 1 Extermination . | . . Reinforcement 1 | . 1 Assault . | . . Garrison . | . . Intercept . | . . Searches Triggered . | . . Construction Impeded . | . . Haulers Reinforced . | . . Active Scanning Responses . | . . Cargo Convoy Interrupts . | . . Stealth | -11 -10 --------- Run | Yrd Mat Distress Signals 2 | . 2 Communications Jammed . | . . Distress Signals . | . . Times Spotted 23 | . 23 Peak Tracking Total 6 | . 6 Tactical Retreats . | . . Traps | -11 -10 ------- Run | Yrd Mat Traps Triggered 1 | . 1 Indirectly . | . . Trap Hack Attempts . | . . Triggered . | . . Disarmed . | . . Reprogrammed . | . . Reused . | . . Traps Extracted . | . . Installed . | . . Triggered . | . . Machines | -11 -10 ---------- Run | Yrd Mat Machines Disabled . | . . Max in Single Turn . | . . Machines Repaired . | . . Machines Dismantled . | . . Machines Sabotaged . | . . Overloaded Fab Kills . | . . Hacking | -11 -10 --------- Run | Yrd Mat Machines Accessed 1 | . 1 Terminals 1 | . 1 Fabricators . | . . Repair Stations . | . . Recycling Units . | . . Scanalyzers . | . . Garrison Access . | . . Total Hacks 2 | . 2 Successful 1 | . 1 Failed 1 | . 1 Catastrophic . | . . Database Lockouts . | . . Manual 2 | . 2 Terminals 2 | . 2 Fabricators . | . . Repair Stations . | . . Recycling Units . | . . Scanalyzers . | . . Garrison Access . | . . Terminal Hacks 1 | . 1 Recall Reinforcements 1 | . 1 Fabricator Hacks . | . . Repair Station Hacks . | . . Recycling Unit Hacks . | . . Scanalyzer . | . . Garrison Access Hacks . | . . Unauthorized Hacks . | . . Terminals . | . . Fabricators . | . . Repair Stations . | . . Recycling Units . | . . Scanalyzers . | . . Garrison Access . | . . Data Cores Recovered . | . . Used . | . . Hacking Detections 1 | . 1 Full Trace Events . | . . Feedback Events . | . . Feedback Blocked . | . . Robot Schematics Acquired . | . . Robots Built . | . . Authchips . | . . Time . | . . Total Robot Build Rating . | . . Part Schematics Acquired . | . . Parts Built . | . . Authchips . | . . Time . | . . Total Part Build Rating . | . . Parts Repaired . | . . Time . | . . Parts Recycled . | . . Recycled Matter . | . . Retrieved Matter . | . . Retrieved Components . | . . Parts Scanalyzed . | . . Part Schematics Acquired . | . . Parts Damaged . | . . Bothacking | -11 -10 ------------ Run | Yrd Mat Used RIF Installer . | . . Robots Hacked . | . . Non-combat . | . . Combat . | . . Robot Hacks Applied . | . . Relay Couplers Released . | . . Fabnet Peak Effective % . | . . Robots Rewired . | . . Allies Hacked . | . . Hacks Repelled . | . . Allies | -11 -10 -------- Run | Yrd Mat Total Allies . | . . Largest Group . | . . Highest-Rated Group . | . . Highest-Rated Ally . | . . Total Orders . | . . Ally Attacks . | . . Total Damage . | . . Kills . | . . Allies Corrupted . | . . Allies Melted . | . . Intel | -11 -10 ------- Run | Yrd Mat Robot Analysis Total . | . . Derelict Logs Recovered . | . . Drone Launches . | . . Drone Recoveries . | . . Exploration | -11 -10 ------------- Run | Yrd Mat Turns Passed 620 | 112 508 Spaces Moved 255 | 64 191 Core 1 | 1 . Treads 7 | . 7 Legs 247 | 63 184 Wheels . | . . Hover . | . . Flight . | . . Fastest Speed 50 | 50 120 Average Speed 122 | 118 123 Slowest Speed 190 | 120 190 Overloaded Moves . | . . Propulsion Burnouts . | . . Robots Hopped . | . . Cave-ins Triggered . | . . Exploration Rate (%) 17 | 5 30 Regions Visited 1 Branch Regions . Pre-discovered Areas . | . . Known Exits Taken . | . . Unknown Exits Taken 1 | 1 . Scrap Searched . | . . Spaces Dug . | . . Terrain Destroyed 43 | . 43 Melee . | . . Projectile . | . . AOE 43 | . 43 Terrain Rammed . | . . Walls Destroyed . | . . Machines Disabled . | . . Actions | -11 -10 --------- Run | Yrd Mat Total 456 | 87 369 Wait 87 | 7 80 Move 254 | 63 191 Hop . | . . Pick Up 17 | 5 12 Fast Attach 7 | 7 . Attach 2 | . 2 Detach . | . . Swap 17 | . 17 Drop 10 | . 10 Fire 61 | 5 56 Melee . | . . Ram . | . . Kick 1 | . 1 Crush . | . . Escape Stasis . | . . Rewire . | . . Trap . | . . Miscellaneous . | . . Route ------- -11/Scrapyard -10/Materials (discovered 1 exit: [*Mat]) History --------- Turn | Location | Event 5 | -11/Scrapyard | Discovered new exit (range 16) 113 | -11/Scrapyard | Entered Materials 308 | -10/Materials | Build established: Mutant 421 | -10/Materials | Core integrity fell below 50% 451 | -10/Materials | Core integrity fell below 20% 597 | -10/Materials | Discovered new exit (range 12) 621 | -10/Materials | Destroyed by G-47 Trooper with Particle Gun Last Messages --------------- 00565_ An alarm sounds. 00565_ ALERT: Alarm triggered, dispatching investigation squad. 00570_ W-16 Scout sends out distress signal. 00577_ G-34 Mercenary destroyed. 00580_ The unstable cave ceiling collapses. 00580_ W-16 Scout destroyed. 00580_ Destroyed Wheel. 00580_ U-05 Engineer destroyed. 00583_ K-01 Serf collects debris. 00592_ Dropped Mni. Grenade Launcher. 00593_ Acquired Mni. Grenade Launcher. 00594_ Dropped Lgt. Assault Rifle. 00594_ K-01 Serf collects debris. 00597_ EXIT=FOUND 00598_ K-01 Serf collects debris. 00609_ Critical hit (Burn: +37). 00616_ Seismic Detector destroyed. 00616_ K-01 Serf collects debris. 00617_ Lgt. Assault Rifle destroyed. Map ----- +----------------------------------------------------+ | ?????????????????????????????????????? | | ?????????????????????????????????????? | | ?????????????????????????????????????? | | ?????????????????????????????????????? | | ?????????????????????????????????????? | | ?????????????????????????????????????? | | ??####?????########??????????????????? | | ??# ###??#]][[]]#??????????????????? | | ??# #??# [[]]########???????????? | | ???? #??# ! ## # ####???????? | | ###### ##### # #???????? | | %! k #???????? | | = #???????? | | * #???????? | | %#################/# #?????#?? | | [ #????????????# # ##???Y"##? | | == #????????????# ## r #?? # | | #????????????# """ ##k # =# | | #????????????# """ ## + """ ? | | #????????????# """ ## # """ ? | | ###########??#] ## #?? """ ?? | | ## #??######## #???? ?? | | ## #???????# *#[#?????? ? | | #* #???????# # #????????? | | %#=[ #???????# #????????? | | % +%[ #???????# @ #????????? | | #[ #???????# ##????????? | | # #???????## # #### #??? | | ## #????????###gg #??? | | = ## #??????????# #??? | | ###########????????? #??? | | #????????????????? #??? | | ######???????????+ #??? | | #???????????# #??? | | #???????????# < #??? | | #???????????###+####### #??? | | ##+#+#####??????????????????####??? | | # #????????????????????????? | | #### T #????????????????????????? | | ???# """ #????????????????????????? | | ???# """ #????????????????????????? | | ???# * """ #????????????????????????? | | ???# #????????????????????????? | | ???##########????????????????????????? | | | | | | | | | | | | | +----------------------------------------------------+ Best States ------------- Heat Dissipation 25 Energy Generation 14 Energy Capacity 250 Matter Stores 300 Matter Capacity 300 Sight Range 16 Terrain Scan Density 10 Evasion (%) 55 Recoil Reduction 2 Item Schematics ----------------- None Robot Schematics ------------------ None Fabricated ------------ Nothing Alien Tech Used ----------------- None Achievements -------------- None Challenges ------------ None Game ------ Seed PointyMetafieldBooster Manual? 0 Play Time 00:10:22 Cumulative 26.4 hours Start 2024.09.14 @ 23:57:29 End 2024.09.15 @ 00:07:31 Sessions 1 Manual Loads 0 Difficulty Rogue Special Mode None Game No. 32 Rogue 13 Adventurer 19 Explorer 0 Win Type - Total 0 Types 0/0/0/0/0/0/0/0/0 Lore% 7 Gallery% 21 Achievement% 17 Wizard Run 0 Options --------- Layout 1 ASCII 0 Keyboard 1 Movement Arrows Keybinds 0 Fullscreen 2 Font 24/Smallcaps Map View 50x35 Zoom Use 0% Tactical HUD 1 Map Filters NONE Filters NONE Steam 1 RUN: aad23a5e-9ddd-48bf-bbf6-e4695593cacb